Cogmind - Beta 13 @@@ ROGUE MODE // 2024.06.13 @ 12:20:52 Player: SovietPaperclip Result: Self-destructed Performance ------------- Evolutions (1) 500 Regions Visited (2) 400 Robots Destroyed (20) 100 Value Destroyed (289) 289 Prototype IDs (0) 0 Alien Tech Used (0) 0 Bonus (0) 0 TOTAL SCORE: 1289 Bonus ------- None Cogmind --------- Core Integrity 308/400 Matter 292/300 Energy 100/100 System Corruption 0% Temperature Cool (0) Movement Treading (320) Ox2 Location -9/Materials Parts ------- > --- POWER (1) -------- (None) > --- PROPULSION (3) --- Light Treads Light Treads > --- UTILITY (3) ------ Huge Storage Unit Improved Propulsion Shielding Light Armor Plating > --- WEAPON (2) ------- (None) > --- INVENTORY (25) --- Light Ion Engine Heat Sink Improved Propulsion Shielding Improved Propulsion Shielding Hacking Suite Hacking Suite Hacking Suite Hacking Suite Hacking Suite Peak State ------------ > --- POWER ------------ Light Ion Engine > --- PROPULSION ------- Light Treads Light Treads > --- UTILITY ---------- Heat Sink Huge Storage Unit Improved Propulsion Shielding > --- WEAPON ----------- Light Assault Rifle > --- INVENTORY -------- Light Ion Engine Improved Propulsion Shielding Improved Propulsion Shielding Hacking Suite Hacking Suite Hacking Suite Hacking Suite Hacking Suite [Rating: 11] Favorites ----------- Power Light Ion Engine Engine Light Ion Engine Propulsion Light Treads Treads Light Treads Utility Small Storage Unit Device Heat Sink Storage Small Storage Unit Protection Light Armor Plating Weapon Light Assault Rifle Ballistic Gun Light Assault Rifle Build | -11 -10 -9 ------- Run | Yrd Mat Mat Slots Evolved 2 | . . 2 Power . | . . . Propulsion 1 | . . 1 Utility 1 | . . 1 Weapon . | . . . Parts Attached 12 | 6 3 3 Power 1 | 1 . . Engine 1 | 1 . . Core . | . . . Reactor . | . . . Propulsion 2 | 2 . . Treads 2 | 2 . . Leg . | . . . Wheel . | . . . Hover . | . . . Flight . | . . . Utility 6 | 1 2 3 Device 1 | . 1 . Storage 2 | 1 . 1 Processor . | . . . Hackware . | . . . Protection 3 | . 1 2 Artifact . | . . . Weapon 3 | 2 1 . Energy Gun . | . . . Energy Cannon . | . . . Ballistic Gun 3 | 2 1 . Ballistic Cannon . | . . . Launcher . | . . . Special Weapon . | . . . Impact Weapon . | . . . Slashing Weapon . | . . . Piercing Weapon . | . . . Special Melee Weapon . | . . . Unidentified Prototypes . | . . . Parts Lost 4 | . 2 2 Power 1 | . . 1 Propulsion . | . . . Utility 1 | . 1 . Weapon 2 | . 1 1 Highest Loss Streak 2 | . 2 1 To Critical Strikes . | . . . Average Slot Usage (%) 85 | . 92 70 Engine 11 | . 14 6 Treads 25 | . 28 22 Device 3 | . . 9 Storage 12 | . 14 11 Protection 8 | . 7 10 Ballistic Gun 21 | . 27 11 Naked Turns . | . . . Heaviest Build 87 | 10 14 87 Greatest Support 40 | 40 40 40 Greatest Overweight (x) 2 | . . 2 Average Overweight (x) . | . . 1 Largest Inventory Capacity 25 | 8 8 25 Average Capacity 12 | 7 8 22 Most Carried 9 | 1 4 9 Average Carried 3 | . 2 7 Final Capacity 25 | 8 8 25 Final Carried 9 | 1 3 9 Class Distribution -------------------- 100% | Mutant Dominant Class ---------------- Mutant | -10/Materials Mutant | -9/Materials Resources | -11 -10 -9 ----------- Run | Yrd Mat Mat Matter Collected 517 | 260 198 59 Remotely . | . . . Salvage Created 436 | . 242 194 Parts 39 | . 19 20 Haulers Intercepted . | . . . Recyclers Shooed 3 | . 2 1 Parts Field Recycled . | . . . Retrieved Matter . | . . . Parts Self-Destructed . | . . . Prevented . | . . . Kills | -11 -10 -9 ------- Run | Yrd Mat Mat Combat Hostiles Destroyed 14 | . 7 7 Guns 14 | . 7 7 Classes Destroyed 7 | . 5 2 Worker 2 | . 2 . Recycler 1 | . . 1 Mechanic 1 | . . 1 Operator 1 | . 1 . Watcher 1 | . 1 . Swarmer 10 | . 3 7 Grunt 4 | . 4 . Best Kill Streak 6 | . 5 6 Combat Bots Only 4 | . 3 4 Max Kills in Single Turn 1 | . 1 1 Gunslinging . | . . . Exploded . | . . . Melee . | . . . Uniques/NPCs Destroyed . | . . . Combat | -11 -10 -9 -------- Run | Yrd Mat Mat Hostile Shots Fired 126 | . 72 54 Missed 41 | . 24 17 Damage Taken 837 | . 514 323 Core 151 | . 59 92 Absorbed by Shields . | . . . Redirected to Shielding 79 | . . 79 Core Remaining (%) 88 | 100 76 . Volleys Fired 89 | . 54 35 Largest 2 | . 2 1 Hottest 40 | . 40 20 Shots Fired 143 | . 108 35 Gun 143 | . 108 35 Cannon . | . . . Launcher . | . . . Special . | . . . Kinetic 143 | . 108 35 Thermal . | . . . Explosive . | . . . Electromagnetic . | . . . Robot Hit Streak 10 | . 6 10 Robot Miss Streak 4 | . 4 2 Penetration Max . | . . . Secondary Targets 1 | . 1 . Max Gunslinging Chain 1 | . 1 . Shots Hit Robots 84 | . 59 25 Core Hits 38 | . 24 14 Critical Kills . | . . . Critical Parts Destroyed 1 | . 1 . Critical Strikes 1 | . 1 . Destroy 1 | . 1 . Melee Attacks . | . . . Impact . | . . . Slashing . | . . . Piercing . | . . . Sneak Attacks . | . . . Combat Hostiles . | . . . Follow-up Attacks . | . . . Damage Inflicted 837 | . 621 216 Guns 837 | . 621 216 Cannons . | . . . Explosions . | . . . Melee . | . . . Ramming . | . . . Kinetic 837 | . 621 216 Thermal . | . . . Explosive . | . . . Electromagnetic . | . . . Impact . | . . . Slashing . | . . . Piercing . | . . . Highest Corruption . | . . . Average Corruption . | . . . Corruption Purged . | . . . Corruption Blocked . | . . . Overload Shots . | . . . Overflow Damage . | . . . Projectiles . | . . . Explosions . | . . . Melee . | . . . Knockbacks . | . . . Impact . | . . . Kinetic . | . . . Secondary . | . . . Self-Inflicted Damage . | . . . Shots . | . . . Rammed . | . . . Targets Rammed . | . . . Kicked . | . . . Crushed . | . . . Highest Temperature 30 | . 30 1 Average Temperature 8 | . 9 1 Received Heat Transfer 240 | . 198 42 Siege Activations . | . . . Robots Corrupted . | . . . Combat Hostiles . | . . . Parts Fried . | . . . Impact Corruptions . | . . . Robots Melted . | . . . Combat Hostiles . | . . . Parts Melted . | . . . Heat Transferred . | . . . Parts Sabotaged . | . . . Parts Stolen . | . . . Parts Stripped . | . . . Power Chain Reactions . | . . . Alert | -11 -10 -9 ------- Run | Yrd Mat Mat Peak Influence 199 | . 199 174 Initial 14 | . . 14 Average 63 | . 55 97 Maximum Alert Level . | . . . Low Security (%) 100 | 100 100 100 Level 1 . | . . . Level 2 . | . . . Level 3 . | . . . Level 4 . | . . . Level 5 . | . . . High Security . | . . . Max Security . | . . . Squads Dispatched 1 | . 1 . Investigation . | . . . Extermination . | . . . Reinforcement 1 | . 1 . Assault . | . . . Garrison . | . . . Intercept . | . . . Searches Triggered . | . . . Construction Impeded . | . . . Haulers Reinforced . | . . . Active Scanning Responses . | . . . Cargo Convoy Interrupts . | . . . Stealth | -11 -10 -9 --------- Run | Yrd Mat Mat Distress Signals 1 | . 1 . Communications Jammed . | . . . Distress Signals . | . . . Times Spotted 27 | . 16 11 Peak Tracking Total 4 | . 4 4 Tactical Retreats 1 | . 1 . Traps | -11 -10 -9 ------- Run | Yrd Mat Mat Traps Triggered . | . . . Indirectly . | . . . Trap Hack Attempts . | . . . Triggered . | . . . Disarmed . | . . . Reprogrammed . | . . . Reused . | . . . Traps Extracted . | . . . Installed . | . . . Triggered . | . . . Machines | -11 -10 -9 ---------- Run | Yrd Mat Mat Machines Disabled . | . . . Max in Single Turn . | . . . Machines Repaired . | . . . Machines Dismantled . | . . . Machines Sabotaged . | . . . Overloaded Fab Kills . | . . . Hacking | -11 -10 -9 --------- Run | Yrd Mat Mat Machines Accessed 1 | . 1 . Terminals 1 | . 1 . Fabricators . | . . . Repair Stations . | . . . Recycling Units . | . . . Scanalyzers . | . . . Garrison Access . | . . . Total Hacks 3 | . 3 . Successful 2 | . 2 . Failed 1 | . 1 . Catastrophic 1 | . 1 . Database Lockouts . | . . . Manual 3 | . 3 . Terminals 3 | . 3 . Fabricators . | . . . Repair Stations . | . . . Recycling Units . | . . . Scanalyzers . | . . . Garrison Access . | . . . Terminal Hacks 1 | . 1 . Part Schematic 1 | . 1 . Fabricator Hacks . | . . . Repair Station Hacks . | . . . Recycling Unit Hacks . | . . . Scanalyzer . | . . . Garrison Access Hacks . | . . . Unauthorized Hacks 1 | . 1 . Terminals 1 | . 1 . Botnet 1 | . 1 . Fabricators . | . . . Repair Stations . | . . . Recycling Units . | . . . Scanalyzers . | . . . Garrison Access . | . . . Data Cores Recovered . | . . . Used . | . . . Hacking Detections 1 | . 1 . Full Trace Events . | . . . Feedback Events . | . . . Feedback Blocked . | . . . Robot Schematics Acquired . | . . . Robots Built . | . . . Authchips . | . . . Time . | . . . Total Robot Build Rating . | . . . Part Schematics Acquired 1 | . 1 . Parts Built . | . . . Authchips . | . . . Time . | . . . Total Part Build Rating . | . . . Parts Repaired . | . . . Time . | . . . Parts Recycled . | . . . Recycled Matter . | . . . Retrieved Matter . | . . . Retrieved Components . | . . . Parts Scanalyzed . | . . . Part Schematics Acquired . | . . . Parts Damaged . | . . . Bothacking | -11 -10 -9 ------------ Run | Yrd Mat Mat Used RIF Installer . | . . . Robots Hacked . | . . . Non-combat . | . . . Combat . | . . . Robot Hacks Applied . | . . . Relay Couplers Released . | . . . Fabnet Peak Effective % . | . . . Robots Rewired . | . . . Allies Hacked . | . . . Hacks Repelled . | . . . Allies | -11 -10 -9 -------- Run | Yrd Mat Mat Total Allies . | . . . Largest Group . | . . . Highest-Rated Group . | . . . Highest-Rated Ally . | . . . Total Orders . | . . . Ally Attacks . | . . . Total Damage . | . . . Kills . | . . . Allies Corrupted . | . . . Allies Melted . | . . . Intel | -11 -10 -9 ------- Run | Yrd Mat Mat Robot Analysis Total . | . . . Derelict Logs Recovered . | . . . Drone Launches . | . . . Drone Recoveries . | . . . Exploration | -11 -10 -9 ------------- Run | Yrd Mat Mat Turns Passed 867 | 81 511 275 Spaces Moved 335 | 49 216 70 Core 6 | 6 . . Treads 329 | 43 216 70 Legs . | . . . Wheels . | . . . Hover . | . . . Flight . | . . . Fastest Speed 50 | 50 160 160 Average Speed 182 | 146 160 276 Slowest Speed 320 | 160 160 320 Overloaded Moves . | . . . Propulsion Burnouts . | . . . Robots Hopped . | . . . Cave-ins Triggered . | . . . Exploration Rate (%) 23 | 5 54 11 Regions Visited 2 Branch Regions . Pre-discovered Areas . | . . . Known Exits Taken . | . . . Unknown Exits Taken 2 | 1 1 . Scrap Searched . | . . . Spaces Dug . | . . . Terrain Destroyed . | . . . Melee . | . . . Projectile . | . . . AOE . | . . . Terrain Rammed . | . . . Walls Destroyed . | . . . Machines Disabled . | . . . Actions | -11 -10 -9 --------- Run | Yrd Mat Mat Total 463 | 55 286 122 Wait 16 | . 10 6 Move 333 | 48 215 70 Hop . | . . . Pick Up 11 | 1 3 7 Fast Attach 8 | 6 1 1 Attach 2 | . 1 1 Detach . | . . . Swap 2 | . 1 1 Drop 2 | . 1 1 Fire 89 | . 54 35 Melee . | . . . Ram . | . . . Kick . | . . . Crush . | . . . Escape Stasis . | . . . Rewire . | . . . Trap . | . . . Miscellaneous . | . . . Route ------- -11/Scrapyard -10/Materials -9/Materials History --------- Turn | Location | Event 11 | -11/Scrapyard | Discovered new exit (range 15) 82 | -11/Scrapyard | Entered Materials 301 | -10/Materials | Build established: Mutant 536 | -10/Materials | Discovered new exit (range 8) 593 | -10/Materials | Entered another Materials area 593 | -9/Materials | Evolved 2 slots: Propulsion x1, Utility x1 868 | -9/Materials | Self-destructed Last Messages --------------- 00782_ R-06 Scavenger inserts Flight Unit into recycling unit. 00783_ K-01 Serf collects debris. 00788_ R-06 Scavenger inserts Lgt. Assault Rifle into recycling unit. 00790_ K-01 Serf collects debris. 00791_ R-06 Scavenger inserts Flight Unit into recycling unit. 00792_ Recycling unit begins recycling process. 00793_ K-01 Serf collects debris. 00795_ R-06 Scavenger inserts Lgt. Assault Rifle into recycling unit. 00797_ K-01 Serf collects debris. 00798_ R-06 Scavenger inserts Flight Unit into recycling unit. 00799_ Recycling unit begins recycling process. 00823_ Acquired Lgt. Armor Plating. 00839_ Acquired 13 matter. 00842_ K-01 Serf collects debris. 00867_ Lgt. Assault Rifle destroyed. Map ----- +----------------------------------------------------+ | ?????????????????????????????????????????????????? | | ?????????????????????????????????????????????????? | | ?????????????????????????????????????????????????? | | ?????????????????????????????????????????????????? | | ?????????????????????????????????????????????????? | | ?????????????????????????????????????????????????? | | ??????????????????????? ???????????????????????? | | ??????????????????????? ??????????????????????? | | ??????????????????????? ??????????????????????? | | ??????????????????????? ??????????????????????? | | ??????????????????????? ??????????????????????? | | ??????????????????????# """ ??????????????????? | | ??????????????????????# """ ???????????????????? | | ????????????########### """????????????????????? | | ????????????# == # ?????????????????????? | | ????????????# == # ??????????????????????? | | ????????????# == # r#??????????????????????? | | ???????####?# # #??????????????????????? | | ?????? #?# """" # rw#??????????????????????? | | ??? """ #?# """" # #??????????????????????? | | ???# """ #?# """" + #??????????????????????? | | ???# """ #?# # #??????????????????????? | | ???# """ ###+######### #??????????????????????? | | ???# """ # #??????????????????????? | | ???# # a #??????????????????????? | | ???# + % u@#??????????????????????? | | ???# [ # | %% g#??????????????????????? | | #### # """ + ?????????????????????? | | ## *** # """ # ????????????????????? | | ## *** # """ # ???????????????????? | | ## *** # """ #?###??????????????????? | | ######### % """ ??????????????????????? | | =%* ??????????????????????? | | !%%= %"Y" #?????????????????????? | | *%= """ #?????????????????????? | | #################+### #?????????????????????? | | #???????????????????#######?????????????????????? | | #???????????????????????????????????????????????? | | #???????????????????????????????????????????????? | | #?######????????????????????????????????????????? | | # #????????????????????????????????????????? | | # #????????????????????????????????????????? | | + """ #????????????????????????????????????????? | | # """ #????????????????????????????????????????? | | # """ #????????????????????????????????????????? | | #? #????????????????????????????????????????? | | ##?######????????????????????????????????????????? | | ?????????????????????????????????????????????????? | | ?????????????????????????????????????????????????? | | ?????????????????????????????????????????????????? | +----------------------------------------------------+ Best States ------------- Heat Dissipation 38 Energy Generation 10 Energy Capacity 125 Matter Stores 300 Matter Capacity 300 Sight Range 16 Terrain Scan Density 10 Armor Coverage 150 Propulsion Shielding 66 Evasion (%) 40 Recoil Reduction 2 Item Schematics ----------------- Cargo Storage Unit | -10/Materials | Hacked Robot Schematics ------------------ None Fabricated ------------ Nothing Alien Tech Used ----------------- None Achievements -------------- None Challenges ------------ None Game ------ Seed ResetGhostFlightbrick Manual? 0 Play Time 00:06:53 Cumulative 123.7 hours Start 2024.06.13 @ 12:15:26 End 2024.06.13 @ 12:20:52 Sessions 1 Manual Loads 0 Difficulty Rogue Special Mode None Game No. 169 Rogue 169 Adventurer 0 Explorer 0 Win Type - Total 1 Types 1/0/0/0/0/0/0/0/0 Lore% 49 Gallery% 54 Achievement% 50 Wizard Run 0 Options --------- Layout 1 ASCII 0 Keyboard 0 Movement Mouse Keybinds 0 Fullscreen 1 Font 32/SmallcapsGlow Map View 50x35 Zoom Use 0% Tactical HUD 1 Map Filters NONE Filters NONE Steam 1 RUN: ad7c14bc-e314-499e-9f8d-eac44b1e1673